bitfinex/quotes_SOLUSD_20241231
["timestamp","ask_amount","ask_price","bid_price","bid_amount"]
[1735612304327,6.4313,190.13,190.02,9.64536486]
[1735612304638,20.0,190.1,190.0,9.64536486]
[1735612305746,20.0,190.1,189.99,23.776884]
[1735612305948,20.0,190.1,189.99,9.64536486]
[1735612306646,20.0,190.1,189.98,11.17476486]
[1735612307342,20.0,190.1,189.99,9.64536486]
[1735612307551,20.0,190.1,189.98,11.17476486]
[1735612308751,20.0,190.1,189.98,1.5294]
[1735612308948,20.0,190.06,189.95,22.80656486]
[1735612309525,20.0,190.06,189.94,9.64536486]
[1735612310453,20.0,190.06,189.95,9.64536486]
[1735612310646,20.0,190.06,189.96,9.64536486]
[1735612310952,20.0,190.06,189.95,9.64536486]
[1735612312256,20.0,190.06,189.97,9.64536486]
[1735612312461,20.0,190.06,189.98,9.64536486]
[1735612312758,6.4313,190.09,189.99,9.64536486]
[1735612312944,6.4313,190.09,190.0,9.64536486]
[1735612313153,6.4313,190.09,190.01,9.64536486]
[1735612314035,6.4313,190.09,190.0,9.64536486]
[1735612314766,20.0,190.06,189.95,13.1608]
[1735612315062,20.0,190.06,189.97,9.64536486]
[1735612315240,20.0,190.06,189.96,9.64536486]
[1735612315743,20.0,190.06,189.95,9.64536486]
[1735612315958,20.0,190.06,189.94,9.64536486]
[1735612318363,20.0,190.06,189.93,11.17476486]
[1735612319352,20.0,190.06,189.93,9.64536486]
[1735612319353,20.0,190.03,189.93,9.64536486]
[1735612319559,20.0,190.03,189.92,9.64536486]
[1735612319870,20.0,190.03,189.91,9.64536486]
[1735612320193,20.0,190.03,189.9,9.64536486]
[1735612320661,20.0,189.99,189.89,9.64536486]
[1735612320850,20.0,189.99,189.88,9.64536486]
[1735612321179,20.0,189.99,189.9,9.64536486]
[1735612321463,6.0384,190.02,189.93,9.64536486]
[1735612322248,6.0384,190.02,189.92,15.01673355]
[1735612324557,6.0384,190.02,189.94,15.01673355]
[1735612327483,6.0384,190.02,189.93,15.01673355]
[1735612328477,6.0384,190.02,189.9,16.67993355]
[1735612329148,20.0,189.99,189.9,15.01673355]
[1735612329959,20.0,189.99,189.91,15.01673355]
[1735612330159,20.0,189.99,189.92,15.01673355]
[1735612331483,20.0,189.99,189.91,15.01673355]
[1735612334285,20.0,189.99,189.92,15.01673355]
[1735612334466,20.0,189.99,189.93,15.01673355]
[1735612334882,6.0384,190.02,189.93,15.01673355]
[1735612335076,2.631,190.05,189.93,16.63663355]
[1735612335288,6.2703,190.07,189.97,15.01673355]
[1735612335594,6.2703,190.07,190.0,15.01673355]
[1735612339089,6.2703,190.07,189.99,15.01673355]
[1735612340687,6.2703,190.07,189.98,15.01673355]
[1735612340894,20.0,190.04,189.96,15.01673355]
[1735612341193,20.0,190.04,189.94,15.01673355]
[1735612341580,20.0,190.04,189.95,15.01673355]
[1735612342173,20.0,190.04,189.96,15.01673355]
[1735612343484,20.0,190.04,189.98,15.01673355]
[1735612343791,20.0,190.04,189.97,38.79361755]
[1735612344696,6.2703,190.07,189.95,15.01673355]
[1735612344884,6.2703,190.07,189.96,15.01673355]
[1735612345092,6.2703,190.07,189.97,15.01673355]
[1735612346183,6.2703,190.07,189.96,15.01673355]
[1735612347095,6.2703,190.07,189.95,15.01673355]
[1735612348897,20.0,190.04,189.93,15.01673355]
[1735612349694,20.0,190.04,189.92,15.01673355]
[1735612349895,20.0,190.04,189.91,15.01673355]
[1735612350716,20.0,190.01,189.9,15.01673355]
[1735612352402,20.0,190.01,189.91,15.01673355]
[1735612353304,20.0,190.01,189.9,15.01673355]
[1735612354202,20.0,190.01,189.9,9.61296772]
[1735612360520,20.0,190.01,189.89,13.1654]
[1735612363335,20.0,190.01,189.89,22.77836772]
[1735612367694,6.5327,190.0,189.89,22.77836772]
[1735612367890,20.0,189.97,189.85,14.7071]
[1735612368096,20.0,189.97,189.84,9.61296772]
[1735612368504,20.0,189.97,189.86,9.61296772]
[1735612369020,20.0,189.97,189.88,9.61296772]
[1735612370926,20.0,189.97,189.87,9.61296772]
[1735612371129,20.0,189.97,189.86,13.1674]
[1735612371333,20.0,189.97,189.85,33.38985172]
[1735612372634,20.0,189.97,189.85,9.61296772]
[1735612372831,20.0,189.97,189.84,33.38985172]
[1735612373729,20.0,189.97,189.84,9.61296772]
[1735612373940,20.0,189.96,189.83,22.78246772]
[1735612374304,20.0,189.96,189.84,9.61296772]
[1735612377441,20.0,189.96,189.85,9.61296772]
[1735612377859,6.4858,189.99,189.87,33.38985172]
[1735612378065,6.4858,189.99,189.91,9.61296772]
[1735612378222,6.4858,189.99,189.93,9.61296772]
[1735612378542,3.96233989,190.02,189.94,9.61296772]
[1735612378716,6.4858,190.04,189.95,9.61296772]
[1735612380609,6.4858,190.04,189.96,9.61296772]
[1735612381339,6.4858,190.04,189.95,9.61296772]
[1735612381839,6.4858,190.04,189.96,9.61296772]
[1735612382450,6.4858,190.04,189.96,22.77346772]
[1735612382745,31.96482961,190.13,189.98,9.61296772]
[1735612382746,6.4858,190.12,189.98,9.61296772]
[1735612383055,6.4858,190.12,190.0,9.61296772]
[1735612383429,20.0,190.09,190.0,9.61296772]
[1735612384046,6.4858,190.12,190.0,9.61296772]
[1735612387072,6.4858,190.12,189.99,10.4022546]
[1735612387360,6.4858,190.12,189.99,9.61296772]
[1735612388352,6.4858,190.12,189.98,23.56088413]
[1735612388531,6.4858,190.12,189.99,9.61296772]
[1735612388959,6.4858,190.12,190.0,9.61296772]
[1735612390356,6.4858,190.12,189.99,9.61296772]
[1735612390962,6.4858,190.12,190.0,9.61296772]
[1735612393143,6.4858,190.12,190.03,9.61296772]
[1735612393342,6.4858,190.12,190.05,9.61296772]
[1735612393763,6.4858,190.12,190.04,9.61296772]
[1735612394066,6.4858,190.12,190.03,9.61296772]
[1735612394442,6.4858,190.12,190.01,22.77016772]
[1735612394856,6.4858,190.12,190.02,9.61296772]
[1735612396366,6.4858,190.12,190.01,9.61296772]
[1735612396667,6.4858,190.12,190.0,9.61296772]
[1735612398166,6.4858,190.12,190.01,9.61296772]
[1735612399147,6.4858,190.12,190.05,9.61296772]
[1735612401267,6.4858,190.12,190.06,9.61296772]
[1735612401458,6.6477,190.17,190.07,9.61296772]
[1735612402008,6.6477,190.17,190.09,9.61296772]
[1735612402274,6.6477,190.17,190.1,9.61296772]
[1735612404372,4.97601451,190.17,190.1,9.49296772]
[1735612405164,4.97601451,190.17,190.1,9.61296772]
[1735612406961,4.97601451,190.17,190.09,33.38985172]
[1735612408958,6.6477,190.22,190.09,33.38985172]
[1735612409386,6.6477,190.22,190.1,9.61296772]
[1735612417481,6.6477,190.22,190.09,33.38985172]
[1735612418684,6.6477,190.22,190.1,13.1509]
[1735612418983,6.6477,190.22,190.1,22.76386772]
[1735612420285,6.6477,190.22,190.1,13.1509]
[1735612425988,6.6477,190.22,190.1,22.76386772]
[1735612430390,6.6477,190.22,190.11,9.61296772]
[1735612435790,6.6477,190.22,190.1,22.76386772]
[1735612437597,6.6477,190.22,190.11,9.61296772]
[1735612437893,6.6477,190.22,190.12,9.61296772]
[1735612438692,6.6477,190.22,190.15,9.61296772]
[1735612442796,6.6477,190.22,190.16,9.61296772]
[1735612443000,6.6477,190.22,190.15,9.61296772]
[1735612443515,6.6477,190.22,190.16,9.61296772]
[1735612444210,6.6477,190.22,190.15,9.61296772]
[1735612444986,6.6477,190.22,190.16,9.61296772]
[1735612445186,6.6477,190.22,190.17,9.61296772]
[1735612445385,20.0,190.28,190.17,9.61296772]
[1735612450526,26.6389,190.27,190.14,9.61296772]
[1735612451006,26.6389,190.27,190.15,9.61296772]
[1735612451194,6.6389,190.27,190.17,9.61296772]
[1735612451506,6.6389,190.27,190.18,9.61296772]
[1735612452402,6.6389,190.27,190.17,9.61296772]
[1735612452601,6.6389,190.27,190.16,9.61296772]
[1735612452813,6.6389,190.27,190.15,22.75986772]
[1735612452814,20.0,190.26,190.15,22.75986772]
[1735612456517,20.0,190.24,190.14,9.61296772]
[1735612457019,6.3132,190.23,190.09,0.78871579]
[1735612457204,6.3132,190.23,190.09,13.94011579]
[1735612457401,6.3132,190.23,190.12,9.61296772]
[1735612459094,6.3132,190.23,190.11,9.61296772]
[1735612459913,6.3132,190.23,190.12,9.61296772]
[1735612460316,6.3132,190.23,190.09,13.94011579]
[1735612460501,6.3132,190.23,190.12,9.61296772]
[1735612461023,6.3132,190.23,190.09,13.94011579]
[1735612461419,6.3132,190.23,190.12,9.61296772]
[1735612461721,6.3132,190.23,190.11,9.61296772]
[1735612461921,6.3132,190.23,190.12,9.61296772]
[1735612462721,14.55751961,190.23,190.12,9.61296772]
[1735612465624,6.3132,190.23,190.12,9.61296772]
[1735612467539,6.3132,190.23,190.13,9.61296772]
[1735612467821,14.55751961,190.23,190.14,9.61296772]
[1735612468403,6.3132,190.23,190.14,9.61296772]
[1735612468915,6.3132,190.23,190.15,9.61296772]
[1735612469113,6.3132,190.23,190.16,9.61296772]
[1735612470135,6.3132,190.23,190.15,9.61296772]
[1735612471426,6.3132,190.23,190.16,9.61296772]
[1735612481618,6.3132,190.23,190.14,13.93621476]
[1735612481619,6.3132,190.23,190.15,9.61296772]
[1735612487543,6.3132,190.23,190.14,22.76056772]
[1735612487841,6.3132,190.23,190.14,9.61296772]
[1735612488044,6.3132,190.23,190.13,9.61296772]
[1735612489828,6.3132,190.23,190.1,13.1503]
[1735612490036,6.3132,190.23,190.12,9.61296772]
[1735612490235,6.3132,190.23,190.13,9.61296772]
[1735612491146,6.3132,190.23,190.14,9.61296772]
[1735612491523,6.3132,190.23,190.13,9.61296772]
[1735612491746,6.3132,190.23,190.14,9.61296772]
[1735612494349,6.3132,190.23,190.13,9.61296772]
[1735612495124,6.3132,190.23,190.14,9.61296772]
[1735612495530,6.3132,190.23,190.13,9.61296772]
[1735612496329,14.55751961,190.23,190.13,9.61296772]
[1735612496745,6.3132,190.23,190.13,9.61296772]
[1735612499570,14.55751961,190.23,190.13,9.61296772]
[1735612499753,6.3132,190.23,190.13,9.61296772]
[1735612502454,14.55751961,190.23,190.13,9.61296772]
[1735612503255,6.3132,190.23,190.13,9.61296772]
[1735612503860,14.55751961,190.23,190.13,9.61296772]
[1735612507758,8.24431961,190.23,190.16,9.61296772]
[1735612507965,8.24431961,190.23,190.2,9.61296772]
[1735612508147,19.10391122,190.25,190.22,9.61296772]
[1735612508341,12.20190961,190.25,190.22,9.61296772]
[1735612508541,8.24431961,190.25,190.21,9.61296772]
[1735612508937,6.4917,190.28,190.21,9.61296772]
[1735612510946,6.4917,190.28,190.2,9.61296772]
[1735612511655,8.24431961,190.31,190.27,9.61296772]
[1735612512367,8.24431961,190.35,190.25,9.61296772]
[1735612512749,8.24431961,190.35,190.24,9.61296772]
[1735612513243,43.81658173,190.38,190.21,36.920084]
[1735612513244,8.24431961,190.36,190.21,36.920084]
[1735612513444,8.24431961,190.36,190.25,9.61296772]
[1735612514664,20.0,190.33,190.19,8.99258484]
[1735612514966,6.4917,190.32,190.19,1.5812]
[1735612515356,20.0,190.28,190.16,0.78852722]
[1735612515549,20.0,190.28,190.16,9.61296772]
[1735612515945,20.0,190.28,190.17,9.61296772]
[1735612516261,20.0,190.28,190.16,29.61296772]
[1735612516777,20.0,190.27,190.16,29.61296772]
[1735612517971,6.4917,190.26,190.14,11.98279966]
[1735612518147,6.4917,190.26,190.14,11.19416772]
[1735612518886,20.0,190.23,190.13,9.61296772]
[1735612519667,20.0,190.23,190.14,9.61296772]
[1735612524568,20.0,190.23,190.15,9.61296772]
[1735612524766,20.0,190.23,190.16,9.61296772]
[1735612525267,20.0,190.23,190.15,9.61296772]
[1735612530477,20.0,190.23,190.14,9.61296772]
[1735612530678,6.4917,190.26,190.14,9.61296772]
[1735612532776,6.4917,190.26,190.15,9.61296772]
[1735612533651,23.776884,190.25,190.13,13.1488]
[1735612533858,23.776884,190.25,190.13,9.61296772]
[1735612534266,23.776884,190.25,190.14,9.61296772]
[1735612543764,20.0,190.22,190.12,9.61296772]
[1735612546992,6.4878,190.21,190.1,13.1508]
[1735612547184,6.4878,190.21,190.1,22.76376772]
[1735612547567,6.4878,190.21,190.11,9.61296772]
[1735612549897,6.4878,190.21,190.1,13.1508]
[1735612550080,6.4878,190.21,190.11,9.61296772]
[1735612550393,6.4878,190.21,190.1,9.61296772]
[1735612567126,6.4878,190.21,190.09,1.5812]
[1735612567328,6.4878,190.21,190.1,9.61296772]
[1735612568015,6.4878,190.21,190.08,23.776884]
[1735612568210,6.4878,190.21,190.0,8.2622223]
[1735612568211,20.0,190.13,190.0,8.2622223]
[1735612568432,6.4099,190.12,190.0,8.2622223]
[1735612568725,6.4099,190.12,190.0,17.87519002]
[1735612569118,6.4099,190.12,190.02,9.61296772]
[1735612570320,6.4099,190.12,190.01,9.61296772]
[1735612571114,6.4099,190.12,190.0,20.0]
[1735612571429,6.4099,190.12,190.01,9.61296772]
[1735612574031,6.4099,190.12,190.0,9.61296772]
[1735612577128,23.776884,190.11,190.0,9.61296772]
[1735612579236,6.4099,190.12,190.02,9.61296772]
[1735612579443,6.4099,190.12,190.03,9.61296772]
[1735612581443,6.4099,190.12,190.04,9.61296772]
[1735612581825,6.4099,190.12,190.05,9.61296772]
[1735612582033,6.4099,190.12,190.06,9.61296772]
[1735612582344,6.4352,190.19,190.08,9.61296772]
[1735612582513,6.4352,190.19,190.03,23.776884]
[1735612582514,6.4352,190.19,190.1,9.61296772]
[1735612582720,6.4352,190.19,190.11,9.61296772]
[1735612583646,6.4352,190.19,190.1,9.61296772]
[1735612584240,6.4352,190.19,190.09,9.61296772]
[1735612584627,20.0,190.16,190.03,13.1558]
[1735612584831,20.0,190.16,190.05,9.61296772]
[1735612585145,20.0,190.16,190.04,9.61296772]
[1735612586936,20.0,190.16,190.05,9.61296772]
[1735612588149,20.0,190.16,190.06,9.61296772]
[1735612588656,20.0,190.16,190.05,9.61296772]
[1735612589326,20.0,190.16,190.04,9.61296772]
[1735612589538,20.0,190.16,190.05,9.61296772]
[1735612589940,20.0,190.16,190.06,9.61296772]
[1735612591049,20.0,190.16,190.05,9.61296772]
[1735612591218,20.0,190.16,190.04,9.61296772]
[1735612592234,20.0,190.14,190.03,22.76876772]
[1735612593539,20.0,190.14,190.01,1.5257]
[1735612593854,30.212084,190.17,189.99,9.61296772]
[1735612593855,20.0,190.1,189.99,9.61296772]
[1735612594028,20.0,190.1,190.0,9.61296772]
[1735612594530,20.0,190.1,189.99,29.61296772]
[1735612594854,20.0,190.1,189.99,9.61296772]
[1735612595451,20.0,190.1,189.97,9.61296772]
[1735612597051,23.776884,190.09,189.96,14.6858]
[1735612597255,20.0,190.05,189.96,9.61296772]
[1735612599350,20.0,190.05,189.93,13.95207132]
[1735612599547,20.0,190.05,189.96,9.61296772]
[1735612599753,20.0,190.05,189.95,9.61296772]
[1735612599927,20.0,190.05,189.96,9.61296772]
[1735612600647,6.257,190.08,189.98,9.61296772]
[1735612600873,6.257,190.08,190.0,9.61296772]
[1735612606779,6.257,190.08,189.99,9.61296772]
[1735612608383,6.257,190.08,189.92,13.95205153]
[1735612608560,20.0,190.05,189.95,9.61296772]
[1735612610154,20.0,190.05,189.97,9.61296772]
[1735612614299,20.0,190.05,189.96,9.61296772]
[1735612614585,6.257,190.08,189.96,9.61296772]
[1735612614775,6.257,190.08,189.98,9.61296772]
[1735612614959,6.257,190.08,189.99,9.61296772]
[1735612615383,6.0593,190.13,190.02,9.61296772]
[1735612615666,6.0593,190.13,190.03,9.61296772]
[1735612618284,6.0593,190.13,190.01,9.61296772]
[1735612618578,6.0593,190.13,190.0,9.61296772]
[1735612630382,6.0593,190.13,190.01,9.61296772]
[1735612630932,6.1983,190.17,190.07,9.61296772]
[1735612631073,6.1983,190.17,190.02,23.776884]
[1735612631393,20.0,190.14,190.01,9.61296772]
[1735612631813,20.0,190.14,189.99,40.26430797]
[1735612631814,20.0,190.09,189.99,0.78920797]
[1735612631967,20.0,190.09,189.98,1.5459]
[1735612632164,20.0,190.09,189.96,9.61296772]
[1735612632800,20.0,190.09,189.94,27.11352611]
[1735612632801,20.0,190.09,189.97,9.61296772]
[1735612633089,20.0,190.09,189.98,33.38985172]
[1735612633296,20.0,190.09,189.99,22.77146772]
[1735612635014,20.0,190.09,189.99,13.1585]
[1735612640713,20.0,190.09,189.99,9.61296772]
[1735612641403,6.1983,190.12,190.02,9.61296772]
[1735612641594,6.1983,190.12,190.04,9.61296772]
[1735612641794,6.1983,190.12,190.0,2.42360843]
[1735612641795,6.1983,190.12,190.05,9.61296772]
[1735612644822,6.1983,190.12,190.06,9.61296772]
[1735612645335,6.4833,190.18,190.07,9.61296772]
[1735612648933,6.4833,190.18,190.06,9.61296772]
[1735612649101,6.4833,190.18,190.05,9.61296772]
[1735612649520,20.0,190.15,190.04,22.76806772]
[1735612649696,20.0,190.15,190.04,9.61296772]
[1735612649895,20.0,190.15,190.03,9.61296772]
[1735612650108,20.0,190.15,190.02,9.61296772]
[1735612650410,6.4833,190.13,190.01,9.61296772]
[1735612650609,6.4833,190.13,190.0,9.61296772]
[1735612650827,23.776884,190.12,190.0,20.0]
[1735612651201,23.776884,190.12,189.98,9.61296772]
[1735612651611,20.0,190.09,189.98,9.61296772]
[1735612651810,20.0,190.09,189.97,22.77286772]
[1735612652309,20.0,190.09,189.98,9.61296772]
[1735612652910,6.4833,190.08,189.96,29.61296772]
[1735612654837,6.4833,190.08,189.97,9.61296772]
[1735612655432,23.776884,190.07,189.95,9.61296772]
[1735612655725,23.776884,190.07,189.94,9.61296772]
[1735612656602,23.776884,190.07,189.91,0.78956827]
[1735612656603,20.0,190.04,189.91,0.78956827]
[1735612656818,6.1398,190.03,189.92,9.61296772]
[1735612657325,6.1398,190.03,189.91,9.61296772]
[1735612659927,20.0,190.0,189.92,9.61296772]
[1735612660703,20.0,190.0,189.91,9.61296772]
[1735612663228,20.0,190.0,189.92,9.61296772]
[1735612663626,20.0,190.0,189.91,9.61296772]
[1735612664230,20.0,190.0,189.93,9.61296772]
[1735612664533,6.1398,190.03,189.94,9.61296772]
[1735612664739,6.1398,190.03,189.96,9.61296772]
[1735612665122,6.1398,190.03,189.97,9.61296772]
[1735612665842,6.1398,190.03,189.93,23.776884]
[1735612666044,6.1398,190.03,189.96,9.61296772]
[1735612666540,6.1398,190.03,189.95,9.61296772]
[1735612667744,6.1398,190.03,189.96,9.61296772]
[1735612676650,6.1398,190.03,189.95,9.61296772]
[1735612677251,6.1398,190.03,189.92,13.1633]
[1735612677547,20.0,190.0,189.9,9.61296772]
[1735612677754,20.0,190.0,189.93,9.61296772]
[1735612678447,20.0,190.0,189.91,9.61296772]
[1735612679338,20.0,190.0,189.89,13.1654]
[1735612679339,6.1398,190.03,189.9,9.61296772]
[1735612680544,23.776884,190.02,189.9,9.61296772]
[1735612680947,23.776884,190.02,189.89,20.0]
[1735612681147,23.776884,190.02,189.88,9.61296772]
[1735612681148,20.0,189.99,189.88,9.61296772]
[1735612681329,6.1279,189.98,189.87,9.61296772]
[1735612681537,6.1279,189.98,189.86,22.78036772]
[1735612681830,6.1279,189.98,189.86,9.61296772]
[1735612682034,6.1279,189.98,189.87,9.61296772]
[1735612682437,6.1279,189.98,189.88,9.61296772]
[1735612684156,6.1279,189.98,189.87,9.61296772]
[1735612686436,6.1279,189.98,189.86,9.61296772]
[1735612686636,20.0,189.95,189.85,9.61296772]
[1735612687056,20.0,189.95,189.86,9.61296772]
[1735612687261,20.0,189.95,189.85,9.61296772]
[1735612687561,20.0,189.95,189.82,9.61296772]
[1735612689461,20.0,189.91,189.82,9.61296772]
[1735612689636,20.0,189.91,189.81,13.1704]
[1735612689637,20.0,189.91,189.81,22.78336772]
[1735612690651,20.0,189.91,189.82,9.61296772]
[1735612692163,20.0,189.91,189.81,13.1704]
[1735612692350,20.0,189.91,189.82,9.61296772]
[1735612695762,20.0,189.9,189.77,9.61296772]
[1735612697547,20.0,189.9,189.78,9.61296772]
[1735612697962,20.0,189.86,189.74,22.78826772]
[1735612698159,51.520133,189.89,189.72,9.61296772]
[1735612698160,20.0,189.82,189.72,9.61296772]
[1735612698461,20.0,189.82,189.7,9.61296772]
[1735612699954,20.0,189.82,189.71,9.61296772]
[1735612701374,20.0,189.82,189.73,9.61296772]
[1735612701551,20.0,189.82,189.74,9.61296772]
[1735612704077,20.0,189.82,189.73,9.61296772]
[1735612704663,20.0,189.82,189.72,9.61296772]
[1735612704859,20.0,189.82,189.68,13.18]
[1735612705158,20.0,189.82,189.7,9.61296772]
[1735612706673,20.0,189.82,189.71,9.61296772]
[1735612709678,20.0,189.82,189.72,9.61296772]
[1735612709980,20.0,189.82,189.75,9.61296772]
[1735612710192,6.6274,189.85,189.75,9.61296772]
[1735612710473,6.6274,189.85,189.76,9.61296772]
[1735612711076,6.6274,189.85,189.75,9.61296772]
[1735612712977,6.6274,189.85,189.76,9.61296772]
[1735612713972,6.6274,189.85,189.73,20.0]
[1735612714177,6.6274,189.85,189.76,9.61296772]
[1735612715555,6.6274,189.85,189.75,9.61296772]
[1735612716178,20.0,189.86,189.75,11.16016772]
[1735612716474,20.0,189.86,189.75,9.61296772]
[1735612716779,20.0,189.86,189.74,9.61296772]
[1735612717151,20.0,189.86,189.75,9.61296772]
[1735612718064,20.0,189.86,189.76,9.61296772]
[1735612718253,6.0446,189.9,189.78,9.61296772]
[1735612718460,6.0446,189.9,189.79,9.61296772]
[1735612718854,20.0,189.87,189.79,9.61296772]
[1735612722782,20.0,189.87,189.78,9.61296772]
[1735612724685,20.0,189.87,189.79,9.61296772]
[1735612725169,6.0446,189.9,189.79,9.61296772]
[1735612728680,6.0446,189.9,189.8,9.61296772]
[1735612728882,6.0446,189.9,189.83,9.61296772]
[1735612729095,6.0446,189.9,189.84,9.61296772]
[1735612732873,6.2385,189.98,189.89,9.61296772]
[1735612733071,6.2385,189.98,189.92,9.61296772]
[1735612736901,20.0,190.0,189.92,9.61296772]
[1735612742150,6.0907,190.03,189.93,9.61296772]
[1735612743144,6.0907,190.03,189.92,9.61296772]
[1735612743558,20.0,190.0,189.91,0.78951627]
[1735612743716,20.0,190.0,189.92,9.61296772]
[1735612744135,6.0907,190.03,189.92,9.61296772]
[1735612745243,6.0907,190.03,189.93,9.61296772]
[1735612746053,6.0907,190.03,189.92,9.61296772]
[1735612746249,6.0907,190.03,189.91,9.61296772]
[1735612746740,23.776884,190.02,189.92,9.61296772]
[1735612751094,23.776884,190.02,189.91,9.61296772]
[1735612751573,23.776884,190.02,189.92,9.61296772]
[1735612752265,6.0907,190.03,189.94,9.61296772]
[1735612752451,20.0,190.05,189.94,9.61296772]
[1735612752768,15.703667,190.08,189.97,9.61296772]
[1735612752940,20.0,190.05,189.97,9.61296772]
[1735612753141,20.0,190.05,189.95,9.61296772]
[1735612753872,20.0,190.05,189.96,9.61296772]
[1735612755548,20.0,190.05,189.95,9.61296772]
[1735612757135,20.0,190.05,189.93,21.6579]
[1735612757136,23.776884,190.04,189.93,21.6579]
[1735612757541,23.776884,190.04,189.93,31.27086772]
[1735612758055,23.776884,190.04,189.93,21.6579]
[1735612758260,20.0,190.01,189.9,15.98926772]
[1735612759885,23.776884,190.0,189.89,1.6345]
[1735612760068,20.0,189.97,189.85,15.80376772]
[1735612761087,23.776884,190.0,189.85,15.80376772]
[1735612761376,20.0,189.97,189.86,9.61296772]
[1735612762892,20.0,189.97,189.87,9.61296772]
[1735612764063,6.0907,190.01,189.92,9.61296772]
[1735612764269,6.0907,190.05,189.94,9.61296772]
[1735612764473,6.0907,190.05,189.95,9.61296772]
[1735612765410,23.776884,190.04,189.92,0.78943812]
[1735612765618,23.776884,190.04,189.94,9.61296772]
[1735612769621,23.776884,190.04,189.92,9.61296772]
[1735612769922,23.776884,190.04,189.91,11.11406772]
[1735612770383,26.407884,190.04,189.87,13.1667]
[1735612770581,23.776884,190.0,189.89,9.61296772]
[1735612771094,23.776884,190.0,189.9,9.61296772]
[1735612773307,23.776884,190.0,189.91,9.61296772]
[1735612774883,2.631,190.04,189.91,9.61296772]
[1735612775084,20.0,190.02,189.93,9.61296772]
[1735612782732,20.0,190.02,189.92,9.61296772]
[1735612784015,20.0,190.01,189.92,9.61296772]
[1735612785035,20.0,190.0,189.92,9.61296772]
[1735612785419,8.24431961,190.03,189.92,9.61296772]
[1735612785727,23.776884,190.02,189.92,9.61296772]
[1735612786739,23.776884,190.02,189.93,9.61296772]
[1735612787030,8.24431961,190.03,189.93,9.61296772]
[1735612787031,23.776884,190.03,189.93,9.61296772]
[1735612787931,23.776884,190.03,189.93,11.19636772]
[1735612791235,23.776884,190.03,189.93,1.5834]
[1735612794721,23.776884,190.03,189.93,11.19636772]
[1735612798237,20.0,190.01,189.93,11.19636772]
[1735612799333,12.20632109,190.05,189.96,9.61296772]
[1735612799639,8.24431961,190.05,189.97,9.61296772]
[1735612800139,8.24431961,190.05,189.96,9.61296772]
[1735612800625,20.0,190.04,189.96,9.61296772]
[1735612801038,20.0,190.03,189.96,9.61296772]
[1735612801241,20.0,190.03,189.95,9.61296772]
[1735612803544,20.0,190.03,189.93,1.5834]
[1735612804242,20.0,190.03,189.93,11.19636772]
[1735612804423,23.776884,190.02,189.93,1.5834]
[1735612806241,20.0,190.02,189.93,11.19636772]
[1735612806425,20.0,190.02,189.94,9.61296772]
[1735612807039,8.24431961,190.05,189.93,14.7455]
[1735612807237,81.90123248,190.11,189.98,9.61296772]
[1735612807238,8.24431961,190.07,189.98,9.61296772]
[1735612807435,8.24431961,190.07,190.0,9.61296772]
[1735612807741,8.24431961,190.07,190.01,15.92296772]
[1735612807943,8.24431961,190.09,190.01,15.92296772]
[1735612808253,8.24431961,190.09,190.02,9.61296772]
[1735612808445,8.24431961,190.09,190.01,15.92296772]
[1735612809028,20.0,190.08,190.01,15.92296772]
[1735612809839,20.0,190.08,190.01,6.31]
[1735612812148,20.0,190.04,189.99,1.5456]
[1735612820153,23.776884,190.03,189.96,6.31]
[1735612821869,20.0,190.0,189.96,6.31]
[1735612822078,20.0,190.0,189.95,1.5456]
[1735612822363,2.6311,190.04,189.95,1.5456]
[1735612822566,20.0,190.02,189.95,1.5456]
[1735612823053,8.24431961,190.05,189.95,1.5456]
[1735612823369,8.24431961,190.05,189.95,11.15856772]
[1735612823562,23.776884,190.04,189.95,11.15856772]
[1735612823867,23.776884,190.05,189.95,11.15856772]
[1735612824666,20.0,190.03,189.96,9.61296772]